fUSD/lending_fUSD_20240506
["ID","MTS","AMOUNT","RATE_DAILY","PERIOD"]
[326511750,1715033444660,-652.2519,0.00013,2]
[326511751,1715033444673,-14846.03604008,0.00013,2]
[326511752,1715033444686,-415.07506155,0.00013,2]
[326511753,1715033444699,-915.94314115,0.00013,2]
[326511754,1715033444714,-11100.04115182,0.00013,2]
[326511755,1715033444727,-108691.86463235,0.00013,2]
[326511756,1715033444740,-319.395,0.00013,2]
[326511757,1715033444754,-384.83468693,0.00013,2]
[326511758,1715033444765,-357.99,0.00013,2]
[326511759,1715033444777,-420.25335452,0.00013,2]
[326511760,1715033444789,-4865.41938561,0.00013,2]
[326511761,1715033444800,-901.19631038,0.00013,2]
[326511762,1715033444812,-22265.01929867,0.00013,2]
[326511763,1715033444824,-262.65011809,0.00013,2]
[326511764,1715033444835,-617.675,0.00013,2]
[326511765,1715033444847,-85230.88840183,0.00013,2]
[326511766,1715033444859,-309.3964289,0.00013,2]
[326511767,1715033444875,-1765.0,0.00013,2]
[326511768,1715033444887,-6714.73959698,0.00013,2]
[326511769,1715033444900,-556.34975306,0.00013,2]
[326511770,1715033444911,-1340.01178555,0.00013,2]
[326511771,1715033444923,-514.0,0.00013,2]
[326511772,1715033444934,-973.87159115,0.00013,2]
[326511773,1715033444947,-305.4913623,0.00013,2]
[326511774,1715033444959,-26921.04453382,0.00013,2]
[326511775,1715033444973,-66313.63001943,0.00013,2]
[326511776,1715033444984,-8569.60155393,0.00013,2]
[326511777,1715033444996,-3245.80301814,0.00013,2]
[326511778,1715033445008,-9890.78103409,0.00013,2]
[326511779,1715033445020,-1000.41955475,0.00013,2]
[326511780,1715033445032,-700.65251577,0.00013,2]
[326511781,1715033445044,-597.24,0.00013,2]
[326511782,1715033445056,-255.53745705,0.00013,2]
[326511783,1715033445068,-31852.28856625,0.00013,2]
[326511784,1715033445079,-92549.03119487,0.00013,2]
[326511785,1715033445090,-3064.23331078,0.00013,2]
[326511786,1715033445103,-901493.75319631,0.00013,2]
[326511787,1715033445115,-271.86295094,0.00013,2]
[326511788,1715033445127,-722.52774619,0.00013,2]
[326511789,1715033445140,-2630.05297866,0.00013,2]
[326511790,1715033445151,-17092.60688411,0.00013,2]
[326511791,1715033445163,-419.6410628,0.00013,2]
[326511792,1715033445175,-509.16789362,0.00013,2]
[326511793,1715033445189,-3223.7629553,0.00013,2]
[326511794,1715033445200,-64500.00000001,0.00013,2]
[326511795,1715033445213,-2076.48894511,0.00013,2]
[326511796,1715033445225,-313.27,0.00013,2]
[326511797,1715033445237,-2005.591719,0.00013,2]
[326511798,1715033445248,-8766.76781148,0.00013,2]
[326511799,1715033445259,-318.33,0.00013,2]
[326511800,1715033445271,-1940.94509564,0.00013,2]
[326511801,1715033445282,-7969.17193469,0.00013,2]
[326511802,1715033445294,-3131.87472,0.00013,2]
[326511803,1715033445305,-605.30809979,0.00013,2]
[326511804,1715033445316,-3055.35126391,0.00013,2]
[326511805,1715033445330,-2109.83826179,0.00013,2]
[326511806,1715033445343,-813.64995,0.00013,2]
[326511807,1715033445355,-1284.46871091,0.00013,2]
[326511808,1715033445368,-4842.6472485,0.00013,2]
[326511881,1715033447422,-377.06181013,0.00012998,2]
[326511882,1715033447434,-199.6329529,0.00012998,2]
[326511883,1715033447443,-527.15339797,0.00013,2]
[326511884,1715033447455,-896.151839,0.00013,2]
[326511890,1715033829673,-1378.70682127,0.00011491,2]
[326511891,1715033829706,-249.04193518,0.00011492,2]
[326511892,1715033829736,-3056.28141522,0.00011587,2]
[326511893,1715033829766,-1432.43756106,0.00011588,2]
[326511894,1715033829796,-3319.4136112,0.00011588,2]
[326511942,1715034542132,-527.86451827,8.355e-05,2]
[326511943,1715034542666,-155.0,8.356e-05,2]
[326511944,1715034543119,-155.87164352,8.357e-05,2]
[326511945,1715034543674,-4735.88134393,8.357e-05,2]
[326511947,1715034543700,-2358.78776413,8.358e-05,2]
[326511949,1715034543726,-179.72,8.362e-05,2]
[326511950,1715034543755,-11886.87473015,9.284e-05,2]
[326511969,1715034586782,-1772.18354305,8.354e-05,2]
[326511970,1715034587995,-302.41440776,8.354e-05,2]
[326511971,1715034588584,-527.43237094,9.282e-05,2]
[326511973,1715034589245,-1113.42308911,9.282e-05,2]
[326511975,1715034589273,-6284.54658914,9.282e-05,2]
[326511976,1715034590677,-285.88792599,9.281e-05,2]
[326511982,1715034632845,-155.87164352,9.279e-05,2]
[326511983,1715034632855,-162.07435848,9.28e-05,2]
[326511984,1715034632867,-251.61999996,9.28e-05,2]
[326511985,1715034632879,-123.02185483,9.28e-05,2]
[326511986,1715034632891,-11926.86904937,9.281e-05,2]
[326511987,1715034632902,-593.41505923,9.281e-05,2]
[326511988,1715034632917,-2458.93688736,9.281e-05,2]
[326511989,1715034632930,-4000.0,9.281e-05,2]
[326511990,1715034632941,-580.86539022,9.281e-05,2]
[326511991,1715034632955,-2332.32978955,9.281e-05,2]
[326511992,1715034632966,-713.07366266,9.281e-05,2]
[326511993,1715034632980,-893.59727248,9.281e-05,2]
[326511994,1715034632995,-809.73333754,9.281e-05,2]
[326511996,1715034633654,-2444.26708576,9.281e-05,2]
[326512000,1715034633666,-4909.8383545,9.281e-05,2]
[326512004,1715034633678,-3357.65068214,9.281e-05,2]
[326512007,1715034633687,-502.7508467,9.282e-05,2]
[326512010,1715034633700,-16011.7913058,9.282e-05,2]
[326512013,1715034633710,-2775.55236678,9.283e-05,2]
[326512016,1715034633719,-361.70450967,9.284e-05,2]
[326512019,1715034633729,-150.0,9.284e-05,2]
[326512022,1715034633738,-294.74562188,9.284e-05,2]
[326512025,1715034633747,-2857.91200122,9.284e-05,2]
[326512028,1715034633761,-1262.010745,9.284e-05,2]
[326512048,1715034639273,-32464.03947484,9.284e-05,2]
[326512049,1715034639284,-5959.05002,9.284e-05,2]
[326512050,1715034639301,-6179.78557222,9.284e-05,2]
[326512051,1715034639313,-2208.1150035,9.284e-05,2]
[326512054,1715034639325,-768.81954782,9.284e-05,2]
[326512056,1715034639337,-15182.56277858,9.284e-05,2]
[326512057,1715034639348,-5695.7437989,9.284e-05,2]
[326512058,1715034639390,-56468.76414085,9.284e-05,2]
[326512059,1715034639403,-838.75528515,9.284e-05,2]
[326512060,1715034639418,-3319.01570001,9.284e-05,2]
[326512061,1715034640465,-1305.5717064,9.284e-05,2]
[326512064,1715034641574,-435.67082283,9.284e-05,2]
[326512066,1715034641587,-527.10769384,9.284e-05,2]
[326512068,1715034641603,-8381.12854732,9.284e-05,2]
[326512070,1715034641615,-1282.7117794,9.284e-05,2]
[326512073,1715034641628,-278.13525569,9.284e-05,2]
[326512075,1715034641639,-474.95316478,9.284e-05,2]
[326512077,1715034641659,-1978.90521346,9.284e-05,2]
[326512080,1715034641672,-28893.68607968,9.284e-05,2]
[326512082,1715034641684,-3473.94671652,9.284e-05,2]
[326512084,1715034641698,-2758.11352494,9.284e-05,2]
[326512087,1715034641710,-2032.2,9.284e-05,2]
[326512089,1715034641722,-1048.582763,9.284e-05,2]
[326512091,1715034641736,-503.48872017,9.284e-05,2]
[326512093,1715034641749,-71300.75001822,9.284e-05,2]
[326512095,1715034641759,-338816.99119434,9.301e-05,2]
[326512097,1715034641770,-3488.17806797,9.302e-05,2]
[326512099,1715034641780,-427.79115464,0.0001,2]
[326512101,1715034641790,-324.32861415,0.0001,2]
[326512103,1715034641800,-1000.0,0.00010414,2]
[326512105,1715034641810,-3832.87,0.00010414,2]
[326512108,1715034641821,-13739.33,0.00010478,2]
[326512109,1715034641830,-250.0,0.00010586,2]
[326512111,1715034641840,-750.17982827,0.00011,2]
[326512114,1715034641851,-4688.93845827,0.00011002,2]
[326512115,1715034641867,-150.0,0.00011012,2]
[326512117,1715034641876,-158.15,0.00011278,2]
[326512119,1715034641886,-159.57152389,0.00011488,2]
[326512121,1715034641897,-14976.472,0.0001149,2]
[326512123,1715034641908,-5487.53,0.00011505,2]
[326512125,1715034641923,-4335.24,0.00011518,2]
[326512127,1715034641933,-164.26,0.00011518,2]
[326512129,1715034641943,-4335.24,0.00011521,2]
[326512131,1715034641953,-4335.24,0.00011524,2]
[326512133,1715034641964,-4335.24,0.00011527,2]
[326512135,1715034641974,-4335.24,0.0001153,2]
[326512137,1715034641984,-4335.24,0.00011533,2]
[326512139,1715034641994,-4335.24,0.00011536,2]
[326512141,1715034642006,-4335.24,0.00011539,2]
[326512143,1715034642016,-4335.24,0.00011542,2]
[326512146,1715034642027,-4335.24,0.00011545,2]
[326512148,1715034642037,-4335.24,0.00011548,2]
[326512149,1715034642047,-4335.24,0.00011551,2]
[326512152,1715034642058,-4335.24,0.00011554,2]
[326512154,1715034642068,-4335.24,0.00011557,2]
[326512156,1715034642078,-4335.24,0.0001156,2]
[326512158,1715034642088,-4335.24,0.00011563,2]
[326512160,1715034642099,-4335.24,0.00011566,2]
[326512162,1715034642110,-4335.24,0.0001157,2]
[326512164,1715034642123,-4335.24,0.00011573,2]
[326512166,1715034642134,-4335.24,0.00011576,2]
[326512168,1715034642144,-2184.31716652,0.00011586,2]
[326512198,1715034642433,-1296.6111286,0.00011586,2]
[326512201,1715034642453,-431.87161872,0.00011586,2]
[326512203,1715034642463,-178.66688519,0.00011586,2]
[326512205,1715034642473,-155.0,0.00011586,2]
[326512207,1715034642483,-208.17791052,0.00011586,2]
[326512209,1715034642493,-873.67660905,0.00011586,2]
[326512210,1715034642504,-788.18220101,0.00011586,2]
[326512212,1715034642515,-1000.0,0.00011587,2]
[326512214,1715034642525,-369.89957834,0.00011588,2]
[326512216,1715034642535,-399.42482649,0.00011588,2]
[326512218,1715034642546,-151.12,0.00011604,2]
[326512220,1715034642556,-175.02,0.00011647,2]
[326512222,1715034642566,-151.12,0.00011659,2]
[326512224,1715034642575,-467.37038368,0.000117,2]
[326512226,1715034642585,-151.12,0.00011714,2]
[326512228,1715034642595,-1000.0,0.00011715,2]
[326512230,1715034642606,-151.12,0.00011769,2]
[326512232,1715034642616,-151.12,0.00011824,2]
[326512234,1715034642626,-151.12,0.00011879,2]
[326512236,1715034642636,-151.12,0.00011934,2]
[326512238,1715034642648,-151.12,0.00011989,2]
[326512240,1715034642660,-556.51638506,0.00011999,2]
[326512242,1715034642670,-151.12,0.00012044,2]
[326512244,1715034642681,-151.12,0.00012099,2]
[326512246,1715034642692,-151.12,0.00012154,2]
[326512248,1715034642702,-151.12,0.00012209,2]
[326512250,1715034642713,-983.06281251,0.00012345,7]
[326512252,1715034642723,-167.57,0.00012478,2]
[326512254,1715034642733,-167.57,0.00012481,2]
[326512256,1715034642743,-167.57,0.00012484,2]
[326512258,1715034642753,-167.57,0.00012488,2]
[326512260,1715034642764,-167.57,0.00012491,2]
[326512262,1715034642774,-167.57,0.00012494,2]
[326512264,1715034642783,-167.57,0.00012498,2]
[326512266,1715034642793,-167.57,0.00012501,2]
[326512268,1715034642804,-167.57,0.00012504,2]
[326512270,1715034642814,-167.57,0.00012507,2]
[326512272,1715034642825,-167.57,0.00012511,2]
[326512274,1715034642834,-167.57,0.00012514,2]
[326512276,1715034642845,-167.57,0.00012517,2]
[326512278,1715034642855,-167.57,0.00012521,2]
[326512280,1715034642865,-167.57,0.00012524,2]
[326512282,1715034642875,-167.57,0.00012527,2]
[326512284,1715034642885,-167.57,0.0001253,2]
[326512286,1715034642899,-167.57,0.00012534,2]
[326512288,1715034642909,-167.57,0.00012537,2]
[326512291,1715034642923,-167.57,0.0001254,2]
[326512292,1715034642933,-150.0,0.00012717,2]
[326512294,1715034642943,-3150.867,0.0001287,2]
[326512296,1715034642954,-3150.868,0.0001287,2]
[326512298,1715034642964,-3150.868,0.0001287,2]
[326512301,1715034642974,-150.0,0.00012897,2]
[326512303,1715034642984,-388.6296,0.00012899,2]
[326512305,1715034642994,-159.57152389,0.000129,2]
[326512306,1715034643007,-349.13243499,0.000129,2]
[326512308,1715034643023,-152.44421668,0.000129,2]
[326512311,1715034643038,-481.36421376,0.000129,2]
[326512312,1715034643048,-188.03404071,0.00012989,2]
[326512315,1715034643058,-1495.72663807,0.00012995,2]
[326512316,1715034643068,-1270.75506093,0.00012995,2]
[326512319,1715034643079,-249.59658488,0.00012996,2]
[326512321,1715034643089,-290.14485628,0.00012996,2]
[326512323,1715034643100,-486.70754997,0.00012997,2]
[326512325,1715034643111,-179.49292044,0.00012997,2]
[326512327,1715034643127,-2217.06939239,0.00012997,2]
[326512329,1715034643138,-2308.72660009,0.00012997,2]
[326512331,1715034643151,-155.0,0.00012997,2]
[326512333,1715034643162,-155.0,0.00012998,2]
[326512335,1715034643172,-156.34146276,0.00012999,2]
[326512337,1715034643182,-1085865.89733823,0.00013,2]
[326512339,1715034643192,-1721944.14407628,0.00013,2]
[326512343,1715034643203,-188.65310695,0.00013,2]
[326512346,1715034643213,-470.28425654,0.00013,2]
[326512349,1715034643224,-179.74414857,0.00013,2]
[326512354,1715034643234,-3000.0,0.00013,2]
[326512357,1715034643243,-1000.0,0.00013017,2]
[326512361,1715034643253,-4997.99556644,0.0001305,2]
[326512365,1715034643265,-314.79,0.00013151,2]
[326512368,1715034643278,-314.79,0.00013151,2]
[326512371,1715034643290,-314.79,0.00013151,2]
[326512374,1715034643299,-314.79,0.00013151,2]
[326512377,1715034643310,-158.15,0.00013158,2]
[326512379,1715034643320,-1172.77,0.00013425,2]
[326512381,1715034643330,-932.58,0.00013425,2]
[326512383,1715034643340,-1000.0,0.000135,2]
[326512385,1715034643350,-349.13243499,0.00013512,2]
[326512387,1715034643362,-320.0,0.0001354,2]
[326512389,1715034643373,-2751.0,0.00013699,2]
[326512391,1715034643383,-150.0,0.00013699,2]
[326512393,1715034643392,-8835.6,0.00013699,2]
[326512395,1715034643403,-200.0,0.00013699,2]
[326512397,1715034643412,-500.0,0.00013699,2]
[326512399,1715034643422,-400.0,0.000137,2]
[326512401,1715034643432,-354.881654,0.00013973,2]
[326512403,1715034643442,-218.28,0.00013976,2]
[326512405,1715034643453,-1036.73785114,0.00014,2]
[326512407,1715034643463,-282.03665938,0.00014,2]
[326512409,1715034643473,-210.0,0.00014187,2]
[326512411,1715034643482,-5487.53,0.00014244,2]
[326512413,1715034643493,-1000.0,0.00014319,2]
[326512415,1715034643503,-172.95,0.00014382,2]
[326512417,1715034643513,-175.02,0.00014559,2]
[326512419,1715034643525,-354.881654,0.00014795,2]
[326512421,1715034643539,-320.0,0.00014894,2]
[326512423,1715034643549,-4213.32711154,0.00015,2]
[326512425,1715034643558,-5000.0,0.00015,2]
[326512426,1715034643569,-1913.39363988,0.00015,2]
[326512427,1715034643578,-222363.6297094,0.00015,2]
[326512428,1715034643588,-37419.29873334,0.00015,2]
[326512429,1715034643598,-155.0,0.00015,2]
[326512430,1715034643608,-158.15,0.00015038,2]
[326512431,1715034643617,-300.0,0.00015068,2]
[326512432,1715034643627,-218.28,0.00015374,2]
[326512433,1715034643636,-349.13243499,0.00015535,2]
[326512434,1715034643647,-293.0,0.00015605,2]
[326512435,1715034643657,-354.881654,0.00015616,2]
[326512436,1715034643666,-1000.0,0.00015621,2]
[326512437,1715034643676,-454.268,0.00015765,2]
[326512438,1715034643686,-454.268,0.00015765,2]
[326512439,1715034643696,-454.268,0.00015765,2]
[326512440,1715034643705,-454.268,0.00015765,2]
[326512441,1715034643715,-454.268,0.00015765,2]
[326512442,1715034643724,-454.268,0.00015765,2]
[326512443,1715034643733,-454.268,0.00015765,2]
[326512445,1715034643743,-454.268,0.00015765,2]
[326512447,1715034643753,-454.268,0.00015765,2]
[326512449,1715034643762,-454.268,0.00015766,2]
[326512451,1715034643773,-167.0,0.00015831,2]
[326512453,1715034643783,-167.0,0.00015831,2]
[326512455,1715034643792,-3076.46832238,0.00016,2]
[326512457,1715034643802,-820.33,0.00016116,2]
[326512459,1715034643812,-7113.51,0.00016164,2]
[326512461,1715034643822,-320.0,0.00016248,2]
[326512463,1715034643832,-354.881654,0.00016438,2]
[326512465,1715034643842,-200.0,0.00016438,2]
[326512467,1715034643851,-1671.41,0.00016438,2]
[326512469,1715034643862,-300.0,0.00016438,2]
[326512471,1715034643872,-1225.44903621,0.000165,2]
[326512473,1715034643882,-167.0,0.00016702,2]
[326512475,1715034643892,-182.31,0.00016712,2]
[326512477,1715034643903,-218.28,0.00016771,2]
[326512479,1715034643916,-167.16488171,0.000169,2]
[326512481,1715034643926,-158.15,0.00016917,2]
[326512483,1715034643936,-5487.53,0.00016984,2]
[326512485,1715034643946,-1748.69131799,0.00017,2]
[326512487,1715034643958,-354.881654,0.0001726,2]
[326512489,1715034643968,-164.26,0.00017277,2]
[326512491,1715034643978,-175.02,0.00017471,2]
[326512493,1715034643990,-155.82125611,0.00017492,2]
[326512495,1715034644000,-349.13243499,0.00017559,2]
[326512497,1715034644019,-167.0,0.00017573,2]
[326512499,1715034644033,-151.0,0.0001788,2]
[326512501,1715034644051,-151.0,0.0001788,2]
[326512503,1715034644061,-231083.59079235,0.0001788,2]
[326512505,1715034644071,-231083.59079229,0.0001788,2]
[326512507,1715034644083,-231083.59079229,0.0001788,2]
[326512509,1715034644093,-231083.59079229,0.0001788,2]
[326512511,1715034644103,-11214.69976282,0.0001788,2]
[326512513,1715034644113,-11214.69976273,0.0001788,2]
[326512515,1715034644126,-11214.69976273,0.0001788,2]
[326512517,1715034644136,-11214.69976273,0.0001788,2]
[326512519,1715034644147,-301.09927689,0.00018,2]
[326512521,1715034644157,-1250.0,0.00018,3]
[326512523,1715034644167,-3000.0,0.00018,2]
[326512525,1715034644177,-354.881654,0.00018082,2]
[326512527,1715034644188,-153.12904301,0.00018213,2]
[326512529,1715034644197,-11214.69976273,0.00018247,2]
[326512531,1715034644209,-231083.59079229,0.00018377,2]
[326512534,1715034644221,-167.0,0.00018444,2]
[326512535,1715034644231,-167.0,0.00018444,2]
[326512537,1715034644241,-155.82125613,0.00018537,2]
[326512539,1715034644251,-153.072377,0.00018539,2]
[326512541,1715034644260,-151.0,0.00018539,2]
[326512544,1715034644270,-152.5322949,0.00018776,2]
[326512545,1715034644280,-167.0,0.00018818,2]
[326512548,1715034644291,-354.881654,0.00018904,2]
[326512550,1715034644301,-155.15030345,0.00019,2]
[326512552,1715034644311,-1715.35583,0.00019124,2]
[326512554,1715034644321,-166.95067806,0.00019132,2]
[326512556,1715034644331,-151.0,0.00019178,2]
[326512558,1715034644340,-351.35886083,0.00019178,2]
[326512560,1715034644350,-500.0,0.00019178,2]
[326512562,1715034644359,-500.0,0.00019178,2]
[326512564,1715034644368,-500.0,0.00019178,2]
[326512566,1715034644378,-500.0,0.00019178,2]
[326512568,1715034644388,-215.29077639,0.00019178,2]
[326512570,1715034644397,-500.0,0.00019178,2]
[326512572,1715034644408,-500.0,0.00019178,2]
[326512574,1715034644417,-500.0,0.00019178,2]
[326512576,1715034644427,-500.0,0.00019178,2]
[326512578,1715034644437,-500.0,0.00019178,2]
[326512580,1715034644447,-500.0,0.00019178,2]
[326512582,1715034644456,-500.0,0.00019178,2]
[326512584,1715034644466,-500.0,0.00019178,2]
[326512586,1715034644475,-500.0,0.00019178,2]
[326512588,1715034644486,-500.0,0.00019178,2]
[326512590,1715034644496,-500.0,0.00019178,2]
[326512592,1715034644506,-500.0,0.00019178,2]
[326512594,1715034644515,-500.0,0.00019178,2]
[326512596,1715034644525,-500.0,0.00019178,2]
[326512598,1715034644534,-500.0,0.00019178,2]
[326512600,1715034644544,-429.38115316,0.00019178,2]
[326512602,1715034644554,-500.0,0.00019178,2]
[326512604,1715034644563,-500.0,0.00019178,2]
[326512606,1715034644573,-500.0,0.00019178,2]
[326512608,1715034644583,-500.0,0.00019178,2]
[326512610,1715034644593,-500.0,0.00019178,2]
[326512612,1715034644603,-500.0,0.00019178,2]
[326512614,1715034644612,-500.0,0.00019178,2]
[326512616,1715034644622,-500.0,0.00019178,2]
[326512618,1715034644632,-150.58236892,0.00019178,2]
[326512620,1715034644641,-500.0,0.00019178,2]
[326512622,1715034644650,-500.0,0.00019178,2]
[326512624,1715034644660,-500.0,0.00019178,2]
[326512626,1715034644670,-500.0,0.00019178,2]
[326512628,1715034644679,-500.0,0.00019178,2]
[326512630,1715034644689,-500.0,0.00019178,2]
[326512632,1715034644698,-500.0,0.00019178,2]
[326512634,1715034644708,-500.0,0.00019178,2]
[326512636,1715034644717,-500.0,0.00019178,2]
[326512638,1715034644727,-291.86510248,0.00019178,2]
[326512640,1715034644736,-378.81434594,0.00019178,2]
[326512642,1715034644746,-500.0,0.00019178,2]
[326512644,1715034644755,-500.0,0.00019178,2]
[326512646,1715034644765,-500.0,0.00019178,2]
[326512648,1715034644776,-500.0,0.00019178,2]
[326512650,1715034644786,-500.0,0.00019178,2]
[326512652,1715034644796,-500.0,0.00019178,2]
[326512654,1715034644806,-500.0,0.00019178,2]
[326512655,1715034644815,-500.0,0.00019178,2]
[326512657,1715034644825,-500.0,0.00019178,2]
[326512659,1715034644835,-500.0,0.00019178,2]
[326512662,1715034644844,-500.0,0.00019178,2]
[326512664,1715034644855,-500.0,0.00019178,2]
[326512666,1715034644865,-500.0,0.00019178,2]
[326512668,1715034644874,-500.0,0.00019178,2]
[326512670,1715034644884,-500.0,0.00019178,2]
[326512672,1715034644895,-500.0,0.00019178,2]
[326512673,1715034644906,-500.0,0.00019178,2]
[326512676,1715034644919,-500.0,0.00019178,2]
[326512678,1715034644930,-500.0,0.00019178,2]
[326512680,1715034644940,-500.0,0.00019178,2]
[326512682,1715034644949,-500.0,0.00019178,2]
[326512684,1715034644960,-500.0,0.00019178,2]
[326512686,1715034644970,-500.0,0.00019178,2]
[326512688,1715034644980,-500.0,0.00019178,2]
[326512690,1715034644990,-500.0,0.00019178,2]
[326512692,1715034645000,-500.0,0.00019178,2]
[326512694,1715034645010,-581.62966897,0.00019178,2]
[326512696,1715034645021,-500.0,0.00019178,2]
[326512698,1715034645031,-500.0,0.00019178,2]
[326512700,1715034645040,-500.0,0.00019178,2]
[326512702,1715034645051,-500.0,0.00019178,2]
[326512704,1715034645060,-500.0,0.00019178,2]
[326512706,1715034645070,-500.0,0.00019178,2]
[326512708,1715034645079,-228.91324832,0.00019178,2]
[326512710,1715034645089,-500.0,0.00019178,2]
[326512712,1715034645099,-500.0,0.00019178,2]
[326512714,1715034645108,-500.0,0.00019178,2]
[326512716,1715034645120,-423.61338395,0.00019178,2]
[326512718,1715034645132,-500.0,0.00019178,2]
[326512720,1715034645142,-500.0,0.00019178,2]
[326512722,1715034645153,-500.0,0.00019178,2]
[326512724,1715034645162,-500.0,0.00019178,2]
[326512726,1715034645172,-500.0,0.00019178,2]
[326512728,1715034645182,-500.0,0.00019178,2]
[326512730,1715034645191,-346.08485873,0.00019178,2]
[326512732,1715034645201,-500.0,0.00019178,2]
[326512734,1715034645211,-500.0,0.00019178,2]
[326512736,1715034645221,-500.0,0.00019178,2]
[326512738,1715034645230,-500.0,0.00019178,2]
[326512740,1715034645239,-500.0,0.00019178,2]
[326512742,1715034645248,-500.0,0.00019178,2]
[326512744,1715034645257,-269.290376,0.00019178,2]
[326512746,1715034645267,-500.0,0.00019178,2]
[326512748,1715034645277,-500.0,0.00019178,2]
[326512750,1715034645286,-500.0,0.00019178,2]
[326512752,1715034645297,-500.0,0.00019178,2]
[326512754,1715034645306,-500.0,0.00019178,2]
[326512756,1715034645315,-342.40329655,0.00019178,2]
[326512758,1715034645324,-156.95,0.00019178,2]
[326512760,1715034645334,-200.0,0.00019178,2]
[326512762,1715034645343,-200.0,0.00019178,2]
[326512764,1715034645352,-200.0,0.00019178,2]
[326512766,1715034645362,-200.0,0.00019178,2]
[326512768,1715034645375,-200.0,0.00019178,2]
[326512770,1715034645386,-200.0,0.00019178,2]
[326512772,1715034645396,-171.0,0.00019178,2]
[326512774,1715034645406,-305.44,0.00019178,2]
[326512776,1715034645415,-4888.51,0.00019178,2]
[326512777,1715034645425,-8835.6,0.00019178,2]
[326512779,1715034645435,-3128.08,0.00019178,2]
[326512782,1715034645445,-322.76,0.00019178,2]
[326512784,1715034645456,-200.0,0.00019178,2]
[326512786,1715034645466,-3875.26447468,0.000192,2]
[326512788,1715034645476,-640.2,0.000192,2]
[326512790,1715034645485,-1071.38,0.000192,2]
[326512792,1715034645495,-819.94,0.000192,2]
[326512794,1715034645505,-864.0,0.000194,2]
[326512796,1715034645515,-481.36421375,0.00019414,2]
[326512798,1715034645525,-46192.08340008,0.0001944,2]
[326512800,1715034645535,-349.13243499,0.00019582,2]
[326512802,1715034645545,-354.881654,0.00019726,2]
[326512804,1715034645555,-3576.0,0.000198,2]
[326512806,1715034645565,-167.0,0.00019853,2]
[326512808,1715034645575,-197.35706948,0.000199,2]
[326512810,1715034645585,-197.35706917,0.000199,2]
[326512811,1715034645595,-197.35706917,0.000199,2]
[326512814,1715034645606,-197.35706917,0.000199,2]
[326512816,1715034645616,-197.35706917,0.000199,2]
[326512818,1715034645626,-197.35706917,0.000199,2]
[326512820,1715034645637,-197.35706917,0.000199,2]
[326512822,1715034645648,-197.35706917,0.000199,2]
[326512824,1715034645657,-197.35706917,0.000199,2]
[326512826,1715034645666,-197.35706917,0.000199,2]
[326512828,1715034645676,-197.35706917,0.000199,2]
[326512830,1715034645685,-197.35706917,0.000199,2]
[326512832,1715034645695,-197.35706917,0.000199,2]
[326512834,1715034645705,-197.35706917,0.000199,2]
[326512836,1715034645714,-197.35706917,0.000199,2]
[326512838,1715034645724,-197.35706917,0.000199,2]
[326512840,1715034645733,-197.35706917,0.000199,2]
[326512842,1715034645743,-197.35706917,0.000199,2]
[326512844,1715034645753,-197.35706917,0.000199,2]
[326512845,1715034645763,-197.35706917,0.000199,2]
[326512848,1715034645772,-197.35706917,0.000199,2]
[326512850,1715034645782,-197.35706917,0.000199,2]
[326512852,1715034645791,-197.35706917,0.000199,2]
[326512854,1715034645801,-197.35706917,0.000199,2]
[326512856,1715034645811,-197.35706917,0.000199,2]
[326512858,1715034645820,-197.35706917,0.000199,2]
[326512860,1715034645830,-197.35706917,0.000199,2]
[326512862,1715034645839,-197.35706917,0.000199,2]